bitfinex/quotes_BTCUSD_20260215
["timestamp","ask_amount","ask_price","bid_price","bid_amount"]
[1771151715041,0.07101616,70407.0,70402.0,0.07102031]
[1771151718488,0.07101677,70406.0,70402.0,0.07102031]
[1771151718869,0.07101616,70407.0,70402.0,0.07102031]
[1771151719053,0.07101674,70406.0,70402.0,0.07102031]
[1771151719675,0.07101616,70407.0,70402.0,0.07102031]
[1771151720629,0.07101671,70406.0,70402.0,0.07102031]
[1771151720799,0.07101616,70407.0,70402.0,0.07102031]
[1771151721220,0.07101679,70406.0,70402.0,0.07102031]
[1771151721538,0.07101679,70406.0,70401.0,0.07102005]
[1771151722344,0.07101679,70406.0,70402.0,0.07102059]
[1771151722674,0.07141616,70407.0,70402.0,0.07102059]
[1771151722821,0.07101698,70406.0,70400.0,0.07122101]
[1771151722990,0.07101698,70406.0,70401.0,0.07102144]
[1771151723194,0.07101698,70406.0,70401.0,0.07098144]
[1771151723395,0.07101698,70406.0,70401.0,0.05132002]
[1771151724184,0.07101698,70406.0,70400.0,0.07122101]
[1771151724337,0.07101796,70405.0,70400.0,0.07122101]
[1771151724546,0.07102171,70401.0,70400.0,0.0002]
[1771151724704,0.0948225,70399.0,70394.0,0.07102848]
[1771151724902,0.0948225,70399.0,70394.0,0.07113281]
[1771151725874,0.0004,70407.0,70394.0,0.00010433]
[1771151725875,0.02379865,70403.0,70394.0,0.00010433]
[1771151726020,0.0948227,70399.0,70394.0,0.07113259]
[1771151726427,0.02379865,70399.0,70395.0,0.07102755]
[1771151727333,0.07102289,70400.0,70395.0,0.07102755]
[1771151727514,0.02379865,70405.0,70394.0,0.00010433]
[1771151727724,0.09481852,70403.0,70398.0,0.07102406]
[1771151728490,0.02379865,70402.0,70398.0,0.07102406]
[1771151729449,0.09481994,70402.0,70397.0,0.07102487]
[1771151731090,0.09482266,70399.0,70395.0,0.0002]
[1771151731296,0.02379865,70398.0,70395.0,0.0002]
[1771151733498,0.02403025,70398.0,70395.0,0.0002]
[1771151734642,0.0002316,70398.0,70394.0,0.05209616]
[1771151737344,0.0002316,70398.0,70391.0,0.0002]
[1771151737520,0.02379865,70397.0,70391.0,0.0002]
[1771151737722,0.02379865,70395.0,70391.0,0.07123171]
[1771151737923,0.07102676,70396.0,70391.0,0.07123171]
[1771151738308,0.07102777,70395.0,70392.0,0.00016]
[1771151738926,0.07102676,70396.0,70392.0,0.00016]
[1771151739486,0.07102676,70396.0,70394.0,0.0002]
[1771151740283,0.02379865,70406.0,70394.0,0.0002]
[1771151740460,0.07102333,70400.0,70395.0,0.07102748]
[1771151742339,0.07102407,70399.0,70394.0,0.07122709]
[1771151742596,0.09544566,70395.0,70392.0,0.00016]
[1771151742796,0.09544739,70393.0,70391.0,0.0002]
[1771151743254,0.07103079,70392.0,70391.0,0.0002]
[1771151743699,0.09544739,70393.0,70391.0,0.0002]
[1771151744494,0.09489091,70392.0,70391.0,0.0002]
[1771151744820,0.02386012,70392.0,70391.0,0.0002]
[1771151745394,0.07102804,70395.0,70391.0,0.0002]
[1771151745602,0.02386012,70394.0,70391.0,0.0002]
[1771151747109,0.02386012,70393.0,70391.0,0.0002]
[1771151747937,0.07103079,70392.0,70391.0,0.0002]
[1771151748163,0.07103685,70386.0,70385.0,0.0002]
[1771151748385,0.07103411,70389.0,70385.0,0.0002]
[1771151748629,0.17859775,70398.0,70387.0,0.07103496]
[1771151748630,0.07103099,70392.0,70387.0,0.07103496]
[1771151749101,0.07103184,70391.0,70386.0,0.07103659]
[1771151749772,0.07103099,70392.0,70387.0,0.07103575]
[1771151751313,0.07103099,70392.0,70386.0,0.01526973]
[1771151751728,0.07103099,70392.0,70387.0,0.07103544]
[1771151753668,0.07103098,70392.0,70387.0,0.07103544]
[1771151754884,0.07103098,70392.0,70387.0,0.07123544]
[1771151757780,0.07103197,70391.0,70387.0,0.0002]
[1771151758003,0.07103504,70388.0,70383.0,0.0002]
[1771151758626,0.07103504,70388.0,70383.0,0.07123925]
[1771151758834,0.07103393,70389.0,70384.0,0.07103863]
[1771151759486,0.07103393,70389.0,70383.0,0.07123925]
[1771151759954,0.07103393,70389.0,70383.0,0.06801016]
[1771151760125,0.07103393,70389.0,70383.0,0.06753069]
[1771151760549,0.07103533,70388.0,70383.0,0.06753069]
[1771151760686,0.0004,70398.0,70380.0,0.17085568]
[1771151760890,0.07102999,70393.0,70388.0,0.07103423]
[1771151761727,0.07102889,70394.0,70389.0,0.07103356]
[1771151761934,0.62434301,70399.0,70386.0,0.28414712]
[1771151761935,0.09096,70405.0,70386.0,0.17085568]
[1771151762141,0.09096,70405.0,70392.0,0.17085568]
[1771151762142,0.07101947,70405.0,70392.0,0.17085568]
[1771151762344,0.0001984,70409.0,70405.0,0.07101768]
[1771151762581,0.0004,70413.0,70400.0,0.17085568]
[1771151762582,0.07140968,70413.0,70403.0,0.02447283]
[1771151762771,0.07140968,70413.0,70407.0,0.07101481]
[1771151762956,0.07101111,70412.0,70406.0,0.0710161]
[1771151763157,0.0004,70413.0,70409.0,0.07101335]
[1771151763352,0.07101093,70412.0,70406.0,0.07101596]
[1771151763557,0.07101093,70412.0,70407.0,0.26634416]
[1771151763827,0.07141021,70413.0,70410.0,0.07101175]
[1771151763828,0.0004,70413.0,70410.0,0.07101175]
[1771151764031,0.0004,70413.0,70409.0,0.07101347]
[1771151764502,0.0004,70413.0,70409.0,0.02447283]
[1771151764704,0.0004,70413.0,70405.0,0.07101599]
[1771151764904,0.07101062,70412.0,70405.0,0.07101599]
[1771151765174,0.07101219,70411.0,70406.0,0.07201627]
[1771151765578,0.07101219,70411.0,70406.0,0.07101627]
[1771151765918,0.07101727,70406.0,70400.0,0.07106219]
[1771151766172,0.07101754,70407.0,70401.0,0.07102114]
[1771151766319,0.07101899,70404.0,70400.0,4e-05]
[1771151766527,0.02386012,70412.0,70400.0,4e-05]
[1771151766754,0.0710201,70403.0,70400.0,4e-05]
[1771151766957,0.07101953,70404.0,70400.0,4e-05]
[1771151768394,0.07101364,70409.0,70400.0,4e-05]
[1771151768593,0.0710176,70406.0,70400.0,0.07106253]
[1771151769227,0.0710176,70406.0,70401.0,0.0710217]
[1771151769384,0.0710176,70406.0,70400.0,0.07106253]
[1771151769979,0.07101758,70407.0,70400.0,0.07106253]
[1771151770222,0.0004,70406.0,70401.0,0.07102112]
[1771151770741,0.0004,70406.0,70400.0,4e-05]
[1771151771098,0.07101933,70404.0,70400.0,4e-05]
[1771151771701,0.07101933,70404.0,70401.0,0.01]
[1771151774373,0.07101859,70405.0,70401.0,0.01]
[1771151775674,0.07141832,70406.0,70401.0,0.08102161]
[1771151775877,0.0004,70406.0,70402.0,0.07102024]
[1771151776084,0.0004,70406.0,70401.0,0.08102151]
[1771151776275,0.07141727,70406.0,70401.0,0.08102151]
[1771151776935,0.07101786,70405.0,70401.0,0.01]
[1771151777210,0.07141727,70406.0,70401.0,0.08122127]
[1771151777441,0.07101772,70405.0,70401.0,0.0102]
[1771151779586,0.07141727,70406.0,70401.0,0.0812215]
[1771151780148,0.0004,70406.0,70402.0,0.07102056]
[1771151781509,0.0004,70411.0,70402.0,0.18141347]
[1771151781742,1e-08,70414.0,70413.0,0.07100961]
[1771151781946,1e-08,70414.0,70412.0,0.07101053]
[1771151782784,1e-08,70414.0,70413.0,0.07100961]
[1771151783477,1e-08,70414.0,70411.0,0.07100999]
[1771151784017,1e-08,70414.0,70412.0,0.07101028]
[1771151785586,1e-08,70414.0,70413.0,0.07100961]
[1771151785820,1e-08,70414.0,70412.0,0.07101028]
[1771151787369,1e-08,70414.0,70411.0,0.07101003]
[1771151788021,1e-08,70414.0,70412.0,0.07101053]
[1771151788893,1e-08,70414.0,70411.0,0.07101003]
[1771151789700,0.07100915,70414.0,70407.0,0.07101495]
[1771151789905,0.07101106,70412.0,70407.0,0.07101535]
[1771151790836,0.07100961,70413.0,70408.0,0.07101429]
[1771151791446,0.07101071,70412.0,70407.0,0.07101535]
[1771151791650,0.07100961,70413.0,70408.0,0.0710146]
[1771151793018,0.07101031,70414.0,70409.0,0.07101336]
[1771151793579,0.07101031,70414.0,70408.0,0.0710146]
[1771151793920,0.07101031,70414.0,70409.0,0.07101352]
[1771151795641,1e-08,70414.0,70410.0,0.07101201]
[1771151796004,1e-08,70414.0,70411.0,0.07101126]
[1771151796193,1e-08,70414.0,70410.0,0.07101201]
[1771151796940,1e-08,70414.0,70409.0,0.071012]
[1771151796941,0.07101355,70410.0,70406.0,0.0002]
[1771151797589,0.07101333,70411.0,70406.0,0.0712166]
[1771151798196,0.07101333,70411.0,70406.0,0.0711766]
[1771151799949,0.02397113,70410.0,70406.0,0.0711766]
[1771151800371,0.0949838,70410.0,70406.0,0.00016]
[1771151800567,0.02397113,70410.0,70402.0,0.0002]
[1771151800815,0.07101651,70407.0,70402.0,0.07122026]
[1771151801030,0.0949853,70409.0,70404.0,0.07101846]
[1771151801790,0.071015,70408.0,70403.0,0.0710193]
[1771151801989,0.0949853,70409.0,70404.0,0.07101843]
[1771151802823,0.0949853,70409.0,70403.0,0.0710193]
[1771151803030,0.07101477,70408.0,70402.0,0.07121903]
[1771151803230,0.07101612,70407.0,70402.0,0.07121903]
[1771151803991,0.07101612,70407.0,70402.0,0.05131391]
[1771151804195,0.07101477,70408.0,70403.0,0.07101897]
[1771151805050,0.09498527,70409.0,70404.0,0.07101851]
[1771151805823,0.07101414,70409.0,70404.0,0.07101851]
[1771151805990,0.0239362,70408.0,70404.0,0.07086933]
[1771151806582,0.09495099,70408.0,70404.0,0.07086933]
[1771151807143,0.0239362,70408.0,70404.0,0.07101859]
[1771151807352,0.07101439,70410.0,70404.0,0.07101859]
[1771151807553,0.07101439,70410.0,70405.0,0.07101712]
[1771151807758,0.07101373,70409.0,70405.0,0.07101712]
[1771151807962,0.07101373,70409.0,70404.0,0.07121859]
[1771151808378,0.07101373,70409.0,70405.0,0.07101762]
[1771151809015,0.07101487,70408.0,70404.0,0.0002]
[1771151809240,0.07101619,70407.0,70404.0,0.0002]
[1771151809409,0.07101679,70406.0,70404.0,0.0002]
[1771151809762,0.07101619,70407.0,70404.0,0.0002]
[1771151810189,0.07101672,70406.0,70404.0,0.0002]
[1771151810396,0.07101619,70407.0,70404.0,0.0002]
[1771151810617,0.07101814,70405.0,70401.0,0.0102]
[1771151811163,0.07101694,70406.0,70401.0,0.0102]
[1771151811517,0.07101798,70405.0,70401.0,0.0102]
[1771151811885,0.07101594,70407.0,70402.0,0.07102049]
[1771151812009,0.09495214,70407.0,70402.0,0.07102049]
[1771151812228,0.07101491,70408.0,70403.0,0.07101953]
[1771151813554,0.07101584,70407.0,70402.0,0.07102049]
[1771151814243,0.07101491,70408.0,70403.0,0.07101955]
[1771151815208,0.07101602,70407.0,70401.0,0.08122161]
[1771151815422,0.07101727,70406.0,70402.0,0.0002]
[1771151815830,0.07141602,70407.0,70402.0,0.0002]
[1771151816107,0.07101686,70406.0,70402.0,0.0002]
[1771151816430,0.0004,70407.0,70402.0,0.07122012]
[1771151817113,0.0004,70407.0,70403.0,0.0710197]
[1771151818640,0.07141603,70407.0,70402.0,0.07122012]
[1771151819276,0.0004,70407.0,70403.0,0.07101961]
[1771151820326,0.07141569,70407.0,70402.0,0.07122012]
[1771151820543,0.07101688,70406.0,70402.0,0.0002]
[1771151820743,0.07141569,70407.0,70402.0,0.07122013]
[1771151820948,0.0004,70407.0,70403.0,0.07101953]
[1771151821537,0.071416,70407.0,70402.0,0.07122013]
[1771151821860,0.0004,70407.0,70403.0,0.07101938]
[1771151822068,0.0004,70407.0,70403.0,0.07121938]
[1771151822590,0.07141584,70407.0,70403.0,0.0002]
[1771151822817,0.07141584,70407.0,70396.0,0.0002]
[1771151822818,0.0004,70407.0,70396.0,0.0002]
[1771151823036,0.0004,70407.0,70375.0,0.4262851]
[1771151823037,0.0239362,70389.0,70378.0,0.07104484]
[1771151823243,0.07103728,70386.0,70381.0,0.07104178]
[1771151823444,0.0239362,70386.0,70382.0,0.07104035]
[1771151823648,0.0239362,70386.0,70382.0,0.07104045]
[1771151823852,0.0239362,70386.0,70379.0,0.07135036]
[1771151823853,0.07103846,70385.0,70379.0,0.07135036]
[1771151824064,0.07103846,70385.0,70380.0,0.0710427]
[1771151824465,0.09497323,70386.0,70379.0,0.000307]
[1771151824466,0.07103962,70384.0,70379.0,0.000307]
[1771151824690,0.07103962,70384.0,70379.0,0.07135067]
[1771151825102,0.07103962,70384.0,70379.0,0.000307]
[1771151825414,0.07104011,70383.0,70379.0,0.000307]
[1771151825619,0.07103962,70384.0,70379.0,0.07141035]
[1771151826462,0.07103962,70384.0,70378.0,0.01811833]
[1771151826672,0.07103962,70384.0,70370.0,0.0001774]
[1771151826673,0.17543567,70384.0,70370.0,0.0001774]
[1771151826876,0.34024,70392.0,70363.0,0.07105985]
[1771151826877,0.0239362,70376.0,70363.0,0.07105985]
[1771151827157,0.0239362,70376.0,70328.0,0.28428]
[1771151827158,0.0239362,70366.0,70346.0,0.19064821]
[1771151827369,0.0239362,70366.0,70340.0,0.0001774]
[1771151827370,0.34024,70379.0,70340.0,0.0001774]
[1771151827371,0.60559024,70360.0,70345.0,0.07107767]
[1771151827539,0.07106837,70355.0,70349.0,0.07107392]
[1771151827884,0.07106715,70356.0,70350.0,0.07107295]
[1771151828093,0.0239362,70359.0,70340.0,0.84099024]
[1771151828316,0.60559024,70350.0,70333.0,0.02488024]
[1771151828530,0.60559024,70350.0,70340.0,0.07121289]
[1771151828531,0.0239362,70349.0,70340.0,0.07121289]
[1771151828741,0.0710747,70349.0,70343.0,0.07108024]
[1771151828954,0.0239362,70354.0,70350.0,0.07107306]
[1771151829188,0.09500554,70354.0,70347.0,0.07107573]
[1771151829394,0.0239362,70354.0,70349.0,0.07107368]
[1771151829609,0.07107283,70351.0,70344.0,0.0710783]
[1771151829813,0.0239362,70354.0,70341.0,0.02488024]
[1771151829814,0.07107591,70348.0,70342.0,0.07108046]
[1771151830022,0.07107441,70349.0,70343.0,0.07107993]
[1771151831052,0.07107484,70350.0,70347.0,0.0002]
[1771151831470,0.07107484,70350.0,70344.0,0.07107922]
[1771151831674,0.07107402,70351.0,70345.0,0.07107815]
[1771151832135,0.16832417,70399.0,70341.0,0.18307319]
[1771151832136,0.42633877,70367.0,70341.0,0.18307319]
[1771151832359,0.3641762,70357.0,70345.0,0.07107774]
[1771151832567,0.07107238,70351.0,70345.0,0.03732241]
[1771151833008,0.07107238,70351.0,70342.0,0.28432502]
[1771151833209,0.07107238,70351.0,70345.0,0.0710777]
[1771151833825,0.07106696,70357.0,70351.0,0.07107186]
[1771151834034,0.30155172,70356.0,70344.0,0.02463357]
[1771151834270,0.17676212,70352.0,70340.0,0.00012967]
[1771151834471,0.02352241,70345.0,70340.0,0.00012967]
[1771151834647,0.07108082,70343.0,70340.0,0.00012967]
[1771151835008,0.02352241,70344.0,70340.0,0.00012967]
[1771151837152,0.09460174,70344.0,70340.0,0.00012967]
[1771151837347,0.02352241,70344.0,70340.0,0.00012967]
[1771151837602,0.07107173,70352.0,70345.0,0.07107725]
[1771151837816,0.51700212,70358.0,70340.0,0.00012967]
[1771151837817,0.07106985,70354.0,70348.0,0.07107494]
[1771151838266,0.01482795,70353.0,70344.0,0.07107878]
[1771151838471,0.07107379,70350.0,70344.0,0.07107878]
[1771151838903,0.07107379,70350.0,70345.0,0.07107788]
[1771151839109,0.07107379,70350.0,70344.0,0.07107878]
[1771151839261,0.07107426,70349.0,70344.0,0.07107878]
[1771151839470,0.01482795,70351.0,70342.0,0.07108128]
[1771151839635,0.01482795,70351.0,70345.0,0.07107763]
[1771151839837,0.08590077,70351.0,70346.0,0.07107688]
[1771151840037,0.0005,70346.0,70344.0,0.07107764]
[1771151840466,0.07107329,70350.0,70344.0,0.07107764]
[1771151840706,0.07107329,70350.0,70345.0,0.07107815]
[1771151841267,0.08590077,70351.0,70345.0,0.07107815]
[1771151841476,0.01482795,70351.0,70346.0,0.07107694]
[1771151841680,0.87335236,70361.0,70340.0,1.21151015]
[1771151841681,0.091,70361.0,70340.0,1.21151015]
[1771151841914,0.60559024,70360.0,70348.0,0.07107476]
[1771151842116,0.07106789,70356.0,70349.0,0.07107353]
[1771151842542,0.07106879,70355.0,70349.0,0.07107353]
[1771151842809,0.07106879,70355.0,70342.0,0.54118191]
[1771151842810,0.07107263,70351.0,70345.0,0.07107753]
[1771151843014,0.07107263,70351.0,70346.0,0.07107716]
[1771151843187,4e-05,70350.0,70345.0,0.07103753]
[1771151843573,4e-05,70350.0,70346.0,0.07107697]
[1771151844395,4e-05,70350.0,70347.0,0.07107567]
[1771151844597,4e-05,70350.0,70349.0,0.07107421]
[1771151844794,0.09462594,70360.0,70343.0,0.17630834]
[1771151845043,0.07110353,70360.0,70354.0,0.07106865]
[1771151845246,0.07106419,70359.0,70353.0,0.0710699]
[1771151845453,0.07106419,70359.0,70350.0,0.88988294]
[1771151845454,0.07106658,70357.0,70352.0,0.07107085]
[1771151845610,0.07106558,70358.0,70352.0,0.07107085]
[1771151846015,0.07106614,70357.0,70351.0,0.07107057]
[1771151846300,0.07106734,70356.0,70351.0,0.07107057]
[1771151846650,4e-05,70360.0,70355.0,0.07106739]
[1771151846874,4e-05,70360.0,70356.0,0.07106706]
[1771151847130,4e-05,70360.0,70350.0,0.60559024]
[1771151847335,4e-05,70360.0,70358.0,0.07106429]
[1771151847580,4e-05,70360.0,70355.0,0.09570165]
[1771151847929,0.07106446,70359.0,70355.0,0.02463357]
[1771151848099,0.07106446,70359.0,70354.0,0.07106882]
[1771151849682,4e-05,70360.0,70351.0,0.09570531]
[1771151849884,0.07106645,70357.0,70352.0,0.07107116]
[1771151850075,0.07106533,70358.0,70352.0,0.07107116]
[1771151850277,0.07106429,70359.0,70354.0,0.07106859]
[1771151850508,0.28425997,70359.0,70349.0,0.60657341]
[1771151850735,0.07106774,70356.0,70351.0,0.07107209]
[1771151850944,0.07106774,70356.0,70339.0,0.51770489]
[1771151850945,0.07106523,70358.0,70353.0,0.07106955]
[1771151853102,0.071071,70353.0,70349.0,0.02463357]
[1771151853290,4e-05,70360.0,70346.0,0.0002]
[1771151853291,0.07107623,70347.0,70346.0,0.0002]
[1771151854079,0.07107565,70348.0,70346.0,0.0002]
[1771151854288,0.02352241,70347.0,70346.0,0.0002]
[1771151854675,0.09459864,70347.0,70346.0,0.0002]
[1771151855072,0.02352241,70347.0,70346.0,0.0002]
[1771151855282,0.09459864,70347.0,70346.0,0.0002]
[1771151855488,0.07107579,70349.0,70346.0,0.0002]
[1771151855912,0.07107548,70348.0,70346.0,0.0002]
[1771151858312,0.07107548,70348.0,70346.0,0.00016]
[1771151858715,0.07107579,70349.0,70346.0,0.00016]
[1771151858915,0.07107545,70348.0,70346.0,0.00016]
[1771151859810,0.0710723,70351.0,70346.0,0.00016]
[1771151860022,0.07107383,70350.0,70346.0,0.00016]
[1771151860814,0.0710723,70351.0,70346.0,0.07123722]
[1771151861012,0.07107363,70350.0,70346.0,0.00016]
[1771151861414,0.07107248,70351.0,70346.0,0.07123719]
[1771151861621,0.07107323,70350.0,70346.0,0.00016]
[1771151862059,0.07107425,70349.0,70346.0,0.00016]
[1771151862605,0.07107033,70353.0,70346.0,0.00016]
[1771151862824,0.07107033,70353.0,70348.0,0.07107461]
[1771151863043,0.28427222,70356.0,70346.0,0.00016]
[1771151863044,0.0004,70356.0,70346.0,0.00016]
[1771151863258,0.0004,70356.0,70352.0,0.07107053]
[1771151863436,0.07106744,70356.0,70350.0,0.07107236]
[1771151863686,0.07107241,70351.0,70346.0,0.07123664]
[1771151864090,0.07107209,70352.0,70348.0,6e-05]
[1771151864501,0.07107421,70349.0,70348.0,6e-05]
[1771151864681,0.07107623,70347.0,70346.0,1e-08]
[1771151864879,0.0940263,70347.0,70346.0,1e-08]
[1771151865343,0.07107623,70347.0,70346.0,1e-08]
[1771151869222,0.07107563,70348.0,70346.0,1e-08]
[1771151869666,0.07107623,70347.0,70346.0,1e-08]
[1771151872232,0.0004,70350.0,70347.0,0.07107588]
[1771151872380,0.07107436,70349.0,70346.0,1e-08]
[1771151873217,0.00044,70350.0,70346.0,1e-08]
[1771151873420,0.07107435,70349.0,70346.0,1e-08]
[1771151874609,0.07107623,70347.0,70346.0,1e-08]
[1771151878469,0.07107427,70349.0,70346.0,1e-08]
[1771151879232,0.07107538,70348.0,70346.0,1e-08]
[1771151880042,0.07107538,70348.0,70343.0,0.05206131]
[1771151880197,0.07107632,70347.0,70342.0,0.07107952]
[1771151880398,0.00044,70350.0,70340.0,0.07141251]
[1771151880670,0.02339007,70350.0,70340.0,0.00032967]
[1771151880876,0.07107681,70347.0,70342.0,0.07108103]
[1771151881058,0.00044,70350.0,70346.0,0.0002]
[1771151881295,0.09401665,70357.0,70352.0,0.07107071]
[1771151881510,4e-05,70360.0,70357.0,0.07106613]
[1771151881741,4e-05,70360.0,70358.0,0.07106442]
[1771151881939,0.07106482,70359.0,70353.0,0.0710696]
[1771151882095,4e-05,70360.0,70356.0,0.07106704]
[1771151882381,0.02335007,70364.0,70350.0,0.60657341]
[1771151882382,0.0004,70364.0,70352.0,0.16184977]
[1771151882561,4e-05,70370.0,70352.0,0.16184977]
[1771151882562,4e-05,70370.0,70364.0,0.07105906]
[1771151882740,4e-05,70370.0,70369.0,0.07105401]
[1771151882940,0.07105271,70371.0,70361.0,0.16184977]
[1771151883166,0.07105271,70371.0,70366.0,0.07105692]
[1771151883336,0.07105271,70371.0,70362.0,0.47023293]
[1771151883537,0.07105674,70367.0,70361.0,0.07106144]
[1771151883743,0.07105674,70367.0,70362.0,0.07106098]
[1771151883965,0.02295007,70373.0,70360.0,0.34032]
[1771151884123,0.07105679,70367.0,70362.0,0.07106095]
[1771151885772,0.07105679,70367.0,70360.0,1.01795651]
[1771151885957,0.07105679,70367.0,70360.0,0.4113831]
[1771151886176,0.07105026,70373.0,70361.0,0.18598942]
[1771151886377,0.07104941,70374.0,70368.0,0.07105444]
[1771151886577,0.07104941,70374.0,70369.0,0.07105377]
[1771151886862,0.07105353,70370.0,70364.0,0.0710584]
[1771151887242,0.07105408,70369.0,70364.0,0.0710584]
[1771151887388,0.07105353,70370.0,70364.0,0.0710584]
[1771151887586,0.0004,70367.0,70365.0,0.07105782]
[1771151887789,0.0004,70367.0,70366.0,0.07105704]
[1771151888222,0.0004,70375.0,70371.0,0.07105148]
[1771151888463,0.0004,70375.0,70371.0,0.07105132]
[1771151888636,0.07104943,70374.0,70369.0,0.07105359]
[1771151888841,0.0004,70375.0,70370.0,0.07105238]
[1771151889047,0.07144821,70375.0,70370.0,0.07105238]
[1771151889792,0.0004,70375.0,70367.0,0.07105603]
[1771151889924,4e-05,70380.0,70369.0,0.18598942]
[1771151890137,4e-05,70380.0,70370.0,0.67762641]
[1771151890322,0.07104633,70377.0,70372.0,0.07105049]
[1771151891167,0.07104508,70378.0,70373.0,0.07104989]
[1771151891386,0.28415569,70384.0,70368.0,0.02413965]
[1771151891387,0.34032,70390.0,70368.0,0.16184977]
[1771151891570,0.07103641,70387.0,70381.0,0.0710419]
[1771151891770,0.07103795,70385.0,70380.0,0.0710426]
[1771151891969,0.07103728,70386.0,70381.0,0.0710419]
[1771151892172,0.07103728,70386.0,70380.0,0.0710426]
[1771151892372,0.07103589,70387.0,70382.0,0.07104006]
[1771151892573,0.2841353,70389.0,70378.0,0.25703427]
[1771151892839,0.07103726,70386.0,70381.0,0.07104184]
[1771151893012,0.07103726,70386.0,70380.0,0.07104231]
[1771151893217,0.07104233,70381.0,70375.0,0.07104696]
[1771151893390,0.07104298,70380.0,70375.0,0.07104696]
[1771151893657,0.07104436,70379.0,70374.0,0.0710488]
[1771151893850,0.09593118,70379.0,70374.0,0.0710488]
[1771151894424,0.07104458,70380.0,70374.0,0.0710488]
[1771151895497,0.07104398,70379.0,70374.0,0.0710488]
[1771151896284,0.07144458,70380.0,70374.0,0.0710488]
[1771151896649,0.07104407,70379.0,70374.0,0.0710488]
[1771151897229,0.07104407,70379.0,70370.0,4e-05]
[1771151897230,0.02488682,70379.0,70370.0,4e-05]
[1771151897462,0.07104756,70376.0,70370.0,0.07109268]
[1771151898307,0.07104796,70375.0,70370.0,0.07109268]
[1771151898674,0.07104756,70376.0,70370.0,0.07109268]
[1771151898879,0.07104808,70375.0,70370.0,0.07109268]
[1771151900397,0.0004,70380.0,70370.0,4e-05]
[1771151900398,0.60697341,70380.0,70370.0,4e-05]
[1771151900768,0.60697341,70380.0,70367.0,0.34032]
[1771151900769,0.07105292,70371.0,70367.0,0.34032]
[1771151900980,0.09594041,70370.0,70367.0,0.34032]
[1771151901189,0.0710541,70369.0,70367.0,0.34032]
[1771151901335,0.09594184,70368.0,70367.0,0.34032]
[1771151901942,0.07106209,70361.0,70360.0,0.00024]
[1771151902153,0.02488682,70368.0,70360.0,0.00024]
[1771151902154,0.07106151,70362.0,70360.0,0.00024]
[1771151902562,0.09594891,70361.0,70360.0,0.00024]
[1771151903365,0.02488682,70361.0,70360.0,0.00024]
[1771151903827,0.09594891,70361.0,70360.0,0.00024]
[1771151904247,0.02488682,70361.0,70360.0,0.00024]
[1771151904457,0.07105692,70367.0,70361.0,0.07106174]
[1771151904625,0.07105746,70366.0,70360.0,0.07130271]
[1771151904835,0.07105692,70367.0,70361.0,0.07106201]
[1771151905037,0.07105615,70367.0,70361.0,0.07106201]
[1771151905507,0.07105615,70367.0,70362.0,0.07106098]
[1771151905902,0.07105704,70366.0,70361.0,0.07106201]
[1771151906648,0.07105615,70367.0,70361.0,0.07106201]
[1771151907379,0.07105615,70367.0,70362.0,0.07106094]
[1771151907560,0.07105673,70368.0,70362.0,0.07106094]
[1771151907726,0.07105673,70368.0,70363.0,0.0710599]
[1771151908121,0.07105569,70369.0,70363.0,0.0710599]
[1771151908328,0.0004,70370.0,70360.0,0.00024]
[1771151908654,0.0004,70370.0,70367.0,0.07105586]
[1771151908826,0.0004,70370.0,70366.0,0.07105692]
[1771151909031,0.0004,70370.0,70360.0,0.00024]
[1771151909032,0.0004,70370.0,70360.0,0.07130262]
[1771151909326,0.02488682,70361.0,70360.0,0.00024]
[1771151909741,0.09594891,70361.0,70360.0,0.00024]
[1771151910178,0.02488682,70361.0,70360.0,0.00024]
[1771151911126,0.09594891,70361.0,70360.0,0.00024]
[1771151911751,0.07106714,70356.0,70355.0,0.0002039]
[1771151911951,0.07106714,70356.0,70355.0,0.00033357]
[1771151912589,0.07106931,70354.0,70349.0,0.06730734]
[1771151912763,0.07106931,70354.0,70349.0,0.0630076]
[1771151913348,0.02488682,70361.0,70348.0,0.18090747]
[1771151913570,7.5e-05,70357.0,70354.0,0.07106816]
[1771151914381,0.07106475,70359.0,70354.0,0.07106816]
[1771151915611,0.02488682,70361.0,70351.0,0.0002]
[1771151915820,0.41137942,70364.0,70358.0,0.07106438]
[1771151916048,0.41137942,70364.0,70359.0,0.07106376]
[1771151916049,0.41150894,70364.0,70359.0,0.07106376]
[1771151916637,0.34044952,70364.0,70360.0,0.07106256]
[1771151916818,0.34044952,70364.0,70359.0,0.07106376]
[1771151916956,0.07106055,70363.0,70358.0,0.07106445]
[1771151917159,0.07106056,70363.0,70358.0,0.07106445]
[1771151918283,0.07106142,70362.0,70357.0,0.07106428]
[1771151918487,0.07106889,70355.0,70351.0,0.0002]
[1771151918688,0.07106643,70357.0,70352.0,0.07107086]
[1771151918895,0.07106583,70358.0,70352.0,0.07107086]
[1771151919096,0.07106583,70358.0,70353.0,0.07107016]
[1771151920210,0.07106614,70357.0,70351.0,0.07127057]
[1771151920416,0.60638345,70361.0,70351.0,0.0002]
[1771151920620,0.07107118,70352.0,70351.0,0.0002]
[1771151921061,0.02488682,70357.0,70351.0,0.07127186]
[1771151921277,0.07106766,70356.0,70351.0,0.0002]
[1771151921891,0.07106791,70357.0,70352.0,0.07107116]
[1771151922057,0.07106465,70359.0,70352.0,0.07107118]
[1771151922268,0.07106555,70358.0,70352.0,0.07107118]
[1771151922684,0.07106555,70358.0,70352.0,0.07107046]
[1771151923237,0.07106639,70357.0,70352.0,0.0516745]
[1771151925986,0.07106639,70357.0,70351.0,0.07107046]
[1771151927023,0.07106639,70357.0,70352.0,0.071071]
[1771151927225,0.07106639,70357.0,70352.0,0.07092183]
[1771151928013,0.07106743,70356.0,70351.0,0.07107046]
[1771151928583,0.07107237,70351.0,70349.0,0.0002]
[1771151929240,0.07107186,70352.0,70349.0,0.0002]
[1771151929444,0.02419349,70360.0,70351.0,0.07107175]
[1771151929445,0.07106748,70356.0,70351.0,0.07107175]
[1771151931245,0.07106816,70355.0,70350.0,0.0710732]
[1771151931901,0.0710696,70354.0,70349.0,0.07127256]
[1771151932109,0.0710696,70354.0,70349.0,0.07127412]
[1771151932311,0.07106989,70355.0,70350.0,0.07107287]
[1771151935617,0.07106919,70354.0,70350.0,0.07107287]
[1771151936425,0.07106919,70354.0,70350.0,0.07127287]
[1771151937023,0.07106989,70355.0,70350.0,0.07127287]
[1771151937621,0.000115,70360.0,70350.0,0.0002]
[1771151937835,0.02411849,70359.0,70350.0,0.67765627]
[1771151938053,0.00044,70370.0,70352.0,0.02474371]
[1771151938259,0.00044,70370.0,70360.0,0.70218956]
[1771151938260,0.00029827,70364.0,70360.0,0.70218956]
[1771151938465,0.00029827,70364.0,70361.0,0.07106152]
[1771151940556,0.00037682,70364.0,70362.0,0.07106105]
[1771151940762,0.00037682,70364.0,70361.0,0.07106152]